[Event "Titled Tuesday Blitz July 4 Early 2023"]
[White "Nguyen, Ngoc Truong Son"]
[Black "Kamsky, Gata"]
[WhiteFideId "12401110"]
[BlackFideId "2000024"]
[WhiteElo "2909"]
[BlackElo "2998"]
[Result "1-0"]
[Round "10"]
[TimeControl "180+2"]
[Date "2023.07.04"]
[WhiteClock "0:00:05"]
[BlackClock "0:00:00"]
[Board "8"]

1. e4 {[%clk 0:03:00]}  e5 {[%clk 0:02:50]} 2. Nf3 {[%clk 0:02:57]}  Nc6 {[%clk 0:02:50]} 3. Bc4 {[%clk 0:02:56]}  Bc5 {[%clk 0:02:48]} 4. d3 {[%clk 0:02:53]}  Nf6 {[%clk 0:02:46]} 5. Bg5 {[%clk 0:02:53]}  h6 {[%clk 0:02:45]} 6. Bh4 {[%clk 0:02:53]}  Be7 {[%clk 0:02:38]} 7. Nc3 {[%clk 0:02:45]}  d6 {[%clk 0:02:37]} 8. a3 {[%clk 0:02:37]}  O-O {[%clk 0:02:35]} 9. Bxf6 {[%clk 0:02:29]}  Bxf6 {[%clk 0:02:34]} 10. Nd5 {[%clk 0:02:30]}  g6 {[%clk 0:02:21]} 11. h4 {[%clk 0:02:26]}  Bg4 {[%clk 0:02:14]} 12. Ne3 {[%clk 0:02:08]}  Bxf3 {[%clk 0:02:13]} 13. Qxf3 {[%clk 0:02:09]}  Bxh4 {[%clk 0:02:03]} 14. c3 {[%clk 0:01:17]}  Bg5 {[%clk 0:01:57]} 15. Nd5 {[%clk 0:01:03]}  Kg7 {[%clk 0:01:54]} 16. Qe2 {[%clk 0:00:58]}  Ne7 {[%clk 0:01:52]} 17. g3 {[%clk 0:00:54]}  Nxd5 {[%clk 0:01:50]} 18. Bxd5 {[%clk 0:00:55]}  c6 {[%clk 0:01:51]} 19. Bb3 {[%clk 0:00:52]}  f5 {[%clk 0:01:47]} 20. exf5 {[%clk 0:00:38]}  Rxf5 {[%clk 0:01:45]} 21. O-O {[%clk 0:00:36]}  Qb6 {[%clk 0:01:41]} 22. Bc2 {[%clk 0:00:35]}  Rf7 {[%clk 0:01:31]} 23. d4 {[%clk 0:00:32]}  exd4 {[%clk 0:01:16]} 24. Qd3 {[%clk 0:00:30]}  Kf8 {[%clk 0:00:58]} 25. cxd4 {[%clk 0:00:28]}  d5 {[%clk 0:00:55]} 26. Rae1 {[%clk 0:00:20]}  Bf6 {[%clk 0:00:52]} 27. Qxg6 {[%clk 0:00:19]}  Bg7 {[%clk 0:00:52]} 28. Re2 {[%clk 0:00:12]}  Qxd4 {[%clk 0:00:50]} 29. Rfe1 {[%clk 0:00:11]}  Qf6 {[%clk 0:00:49]} 30. Qh5 {[%clk 0:00:08]}  Qg5 {[%clk 0:00:45]} 31. Qxg5 {[%clk 0:00:06]}  hxg5 {[%clk 0:00:45]} 32. Bg6 {[%clk 0:00:07]}  Bf6 {[%clk 0:00:39]} 33. Bxf7 {[%clk 0:00:06]}  Kxf7 {[%clk 0:00:39]} 34. Kg2 {[%clk 0:00:06]}  Rd8 {[%clk 0:00:38]} 35. Rh1 {[%clk 0:00:06]}  Kg6 {[%clk 0:00:33]} 36. Kf3 {[%clk 0:00:05]}  c5 {[%clk 0:00:33]} 37. Rd1 {[%clk 0:00:04]}  d4 {[%clk 0:00:32]} 38. Rc2 {[%clk 0:00:03]}  b6 {[%clk 0:00:30]} 39. b4 {[%clk 0:00:02]}  d3 {[%clk 0:00:30]} 40. Rc4 {[%clk 0:00:02]}  Bd4 {[%clk 0:00:26]} 41. bxc5 {[%clk 0:00:02]}  Bxc5 {[%clk 0:00:24]} 42. a4 {[%clk 0:00:02]}  d2 {[%clk 0:00:16]} 43. Ke2 {[%clk 0:00:02]}  Re8+ {[%clk 0:00:16]} 44. Kxd2 {[%clk 0:00:02]}  Bxf2 {[%clk 0:00:16]} 45. g4 {[%clk 0:00:03]}  Bc5 {[%clk 0:00:15]} 46. Kc2 {[%clk 0:00:03]}  Re2+ {[%clk 0:00:13]} 47. Rd2 {[%clk 0:00:04]}  Re1 {[%clk 0:00:13]} 48. Kb3 {[%clk 0:00:03]}  a5 {[%clk 0:00:11]} 49. Kc2 {[%clk 0:00:03]}  Re3 {[%clk 0:00:11]} 50. Rd3 {[%clk 0:00:04]}  Re2+ {[%clk 0:00:11]} 51. Kd1 {[%clk 0:00:04]}  Rg2 {[%clk 0:00:11]} 52. Rf3 {[%clk 0:00:04]}  Rg1+ {[%clk 0:00:09]} 53. Ke2 {[%clk 0:00:04]}  Rg2+ {[%clk 0:00:10]} 54. Kd3 {[%clk 0:00:04]}  Ra2 {[%clk 0:00:09]} 55. Re4 {[%clk 0:00:04]}  Ra3+ {[%clk 0:00:10]} 56. Ke2 {[%clk 0:00:05]}  Ra2+ {[%clk 0:00:09]} 57. Kd1 {[%clk 0:00:05]}  Ra1+ {[%clk 0:00:09]} 58. Kc2 {[%clk 0:00:05]}  Ra2+ {[%clk 0:00:10]} 59. Kb1 {[%clk 0:00:06]}  Rg2 {[%clk 0:00:09]} 60. Kc1 {[%clk 0:00:06]}  Kg7 {[%clk 0:00:08]} 61. Kd1 {[%clk 0:00:05]}  Kg6 {[%clk 0:00:07]} 62. Ke1 {[%clk 0:00:05]}  Ra2 {[%clk 0:00:06]} 63. Re6+ {[%clk 0:00:04]}  Kg7 {[%clk 0:00:05]} 64. Re4 {[%clk 0:00:04]}  Kg6 {[%clk 0:00:05]} 65. Kf1 {[%clk 0:00:04]}  Kg7 {[%clk 0:00:04]} 66. Rf5 {[%clk 0:00:03]}  Kh6 {[%clk 0:00:03]} 67. Re6+ {[%clk 0:00:03]}  Kg7 {[%clk 0:00:01]} 68. Rxg5+ {[%clk 0:00:04]}  Kf7 {[%clk 0:00:02]} 69. Re4 {[%clk 0:00:04]}  Bb4 {[%clk 0:00:00]} 70. Rf5+ {[%clk 0:00:05]} 1-0


[Site "https://www.chess.com"]

[Event "Titled Tuesday Blitz July 4 Early 2023"]
[White "Demchenko, Anton"]
[Black "Khismatullin, Denis"]
[WhiteFideId "4160258"]
[BlackFideId "4142578"]
[WhiteElo "2899"]
[BlackElo "2990"]
[Result "0-1"]
[Round "10"]
[TimeControl "180+2"]
[Date "2023.07.04"]
[WhiteClock "0:00:03"]
[BlackClock "0:00:32"]
[Board "9"]

1. e4 {[%clk 0:03:00]}  c5 {[%clk 0:02:56]} 2. Nc3 {[%clk 0:03:00]}  e6 {[%clk 0:02:55]} 3. Nf3 {[%clk 0:02:54]}  a6 {[%clk 0:02:55]} 4. d4 {[%clk 0:02:51]}  cxd4 {[%clk 0:02:56]} 5. Nxd4 {[%clk 0:02:52]}  b5 {[%clk 0:02:56]} 6. Bd3 {[%clk 0:02:47]}  Qb6 {[%clk 0:02:52]} 7. Nf3 {[%clk 0:02:47]}  Qc7 {[%clk 0:02:52]} 8. O-O {[%clk 0:02:46]}  Bb7 {[%clk 0:02:53]} 9. Re1 {[%clk 0:02:45]}  Be7 {[%clk 0:02:53]} 10. Ne2 {[%clk 0:02:27]}  Nf6 {[%clk 0:02:34]} 11. Ng3 {[%clk 0:02:28]}  Nc6 {[%clk 0:02:21]} 12. c3 {[%clk 0:02:28]}  h5 {[%clk 0:02:15]} 13. h3 {[%clk 0:02:17]}  Bc5 {[%clk 0:02:05]} 14. Be3 {[%clk 0:02:12]}  Bxe3 {[%clk 0:02:04]} 15. Rxe3 {[%clk 0:02:13]}  h4 {[%clk 0:02:03]} 16. Nf1 {[%clk 0:02:11]}  Ne5 {[%clk 0:02:00]} 17. Nxe5 {[%clk 0:02:00]}  Qxe5 {[%clk 0:02:01]} 18. a4 {[%clk 0:02:00]}  g5 {[%clk 0:01:50]} 19. Nh2 {[%clk 0:01:56]}  Ke7 {[%clk 0:01:24]} 20. axb5 {[%clk 0:01:25]}  axb5 {[%clk 0:01:25]} 21. Rxa8 {[%clk 0:01:25]}  Rxa8 {[%clk 0:01:25]} 22. Nf3 {[%clk 0:01:25]}  Qc5 {[%clk 0:01:25]} 23. Nd4 {[%clk 0:00:28]}  b4 {[%clk 0:01:23]} 24. Bc2 {[%clk 0:00:27]}  g4 {[%clk 0:00:58]} 25. e5 {[%clk 0:00:26]}  Nd5 {[%clk 0:00:56]} 26. Qxg4 {[%clk 0:00:27]}  Ra1+ {[%clk 0:00:50]} 27. Kh2 {[%clk 0:00:27]}  Nxe3 {[%clk 0:00:50]} 28. Qxh4+ {[%clk 0:00:27]}  Ke8 {[%clk 0:00:50]} 29. Qh8+ {[%clk 0:00:27]}  Qf8 {[%clk 0:00:46]} 30. Qxf8+ {[%clk 0:00:25]}  Kxf8 {[%clk 0:00:47]} 31. fxe3 {[%clk 0:00:25]}  bxc3 {[%clk 0:00:42]} 32. bxc3 {[%clk 0:00:26]}  Re1 {[%clk 0:00:42]} 33. Kg3 {[%clk 0:00:09]}  Rxe3+ {[%clk 0:00:41]} 34. Kf2 {[%clk 0:00:10]}  Rxc3 {[%clk 0:00:41]} 35. h4 {[%clk 0:00:09]}  Rc4 {[%clk 0:00:40]} 36. Ke3 {[%clk 0:00:10]}  Bxg2 {[%clk 0:00:39]} 37. h5 {[%clk 0:00:09]}  Kg7 {[%clk 0:00:39]} 38. Bd3 {[%clk 0:00:09]}  Rc5 {[%clk 0:00:39]} 39. Kf4 {[%clk 0:00:09]}  Rd5 {[%clk 0:00:37]} 40. Ke3 {[%clk 0:00:08]}  Rxe5+ {[%clk 0:00:37]} 41. Kf2 {[%clk 0:00:09]}  Rd5 {[%clk 0:00:35]} 42. Ke3 {[%clk 0:00:07]}  Rxh5 {[%clk 0:00:35]} 43. Ne2 {[%clk 0:00:06]}  Re5+ {[%clk 0:00:33]} 44. Kf4 {[%clk 0:00:06]}  f6 {[%clk 0:00:33]} 45. Ng3 {[%clk 0:00:06]}  Bc6 {[%clk 0:00:31]} 46. Bf1 {[%clk 0:00:05]}  Kf7 {[%clk 0:00:31]} 47. Be2 {[%clk 0:00:05]}  Ke7 {[%clk 0:00:31]} 48. Bh5 {[%clk 0:00:05]}  Ra5 {[%clk 0:00:31]} 49. Bg6 {[%clk 0:00:06]}  Ra4+ {[%clk 0:00:31]} 50. Ke3 {[%clk 0:00:03]}  f5 {[%clk 0:00:32]} 0-1


[Site "https://www.chess.com"]

[Event "Titled Tuesday Blitz July 4 Early 2023"]
[White "Terry, Renato"]
[Black "Suyarov, Mukhammadzokhid"]
[WhiteFideId "3803457"]
[BlackFideId "14210495"]
[WhiteElo "2990"]
[BlackElo "2735"]
[Result "1-0"]
[Round "10"]
[TimeControl "180+2"]
[Date "2023.07.04"]
[WhiteClock "0:00:06"]
[BlackClock "0:00:04"]
[Board "10"]

1. d4 {[%clk 0:03:00]}  Nf6 {[%clk 0:02:59]} 2. Nf3 {[%clk 0:03:01]}  b6 {[%clk 0:02:59]} 3. c4 {[%clk 0:03:00]}  Bb7 {[%clk 0:02:59]} 4. g3 {[%clk 0:03:00]}  e6 {[%clk 0:03:00]} 5. Bg2 {[%clk 0:03:00]}  Bb4+ {[%clk 0:03:00]} 6. Nbd2 {[%clk 0:03:00]}  O-O {[%clk 0:03:00]} 7. O-O {[%clk 0:03:01]}  d6 {[%clk 0:03:00]} 8. Qc2 {[%clk 0:03:00]}  Bxd2 {[%clk 0:02:56]} 9. Bxd2 {[%clk 0:03:01]}  Nbd7 {[%clk 0:02:56]} 10. Rfe1 {[%clk 0:03:00]}  Be4 {[%clk 0:02:54]} 11. Qa4 {[%clk 0:03:01]}  a6 {[%clk 0:02:53]} 12. Rac1 {[%clk 0:02:59]}  h6 {[%clk 0:02:52]} 13. Bf1 {[%clk 0:02:55]}  e5 {[%clk 0:02:30]} 14. d5 {[%clk 0:02:50]}  Nc5 {[%clk 0:02:26]} 15. Qa3 {[%clk 0:02:49]}  a5 {[%clk 0:02:26]} 16. Nh4 {[%clk 0:02:48]}  Nfd7 {[%clk 0:02:12]} 17. f3 {[%clk 0:02:36]}  Bh7 {[%clk 0:02:12]} 18. e4 {[%clk 0:02:20]}  Qf6 {[%clk 0:02:08]} 19. Bh3 {[%clk 0:02:12]}  Rfe8 {[%clk 0:02:07]} 20. Qe3 {[%clk 0:02:10]}  Nf8 {[%clk 0:02:06]} 21. b3 {[%clk 0:02:10]}  Ng6 {[%clk 0:02:01]} 22. Ng2 {[%clk 0:02:06]}  Ne7 {[%clk 0:01:54]} 23. Rf1 {[%clk 0:02:06]}  g5 {[%clk 0:01:50]} 24. Ne1 {[%clk 0:01:45]}  Qg7 {[%clk 0:01:45]} 25. Nd3 {[%clk 0:01:42]}  f5 {[%clk 0:01:31]} 26. Nxc5 {[%clk 0:01:42]}  bxc5 {[%clk 0:01:32]} 27. Kh1 {[%clk 0:01:18]}  a4 {[%clk 0:01:20]} 28. b4 {[%clk 0:01:17]}  cxb4 {[%clk 0:01:20]} 29. Bxb4 {[%clk 0:01:18]}  Rf8 {[%clk 0:01:16]} 30. Bg2 {[%clk 0:01:08]}  g4 {[%clk 0:01:04]} 31. fxg4 {[%clk 0:01:06]}  fxe4 {[%clk 0:01:03]} 32. h3 {[%clk 0:01:02]}  h5 {[%clk 0:01:03]} 33. Bxe4 {[%clk 0:00:53]}  hxg4 {[%clk 0:01:01]} 34. Bxh7+ {[%clk 0:00:53]}  Qxh7 {[%clk 0:00:39]} 35. Qg5+ {[%clk 0:00:52]}  Kh8 {[%clk 0:00:40]} 36. Qxg4 {[%clk 0:00:31]}  Nf5 {[%clk 0:00:40]} 37. Rf3 {[%clk 0:00:28]}  Nd4 {[%clk 0:00:39]} 38. Rff1 {[%clk 0:00:25]}  Rg8 {[%clk 0:00:35]} 39. Qh4 {[%clk 0:00:24]}  Qxh4 {[%clk 0:00:35]} 40. gxh4 {[%clk 0:00:25]}  Rg3 {[%clk 0:00:35]} 41. Rc3 {[%clk 0:00:24]}  Rag8 {[%clk 0:00:32]} 42. Rxg3 {[%clk 0:00:21]}  Rxg3 {[%clk 0:00:33]} 43. Kh2 {[%clk 0:00:15]}  Rg7 {[%clk 0:00:21]} 44. a3 {[%clk 0:00:12]}  Nc2 {[%clk 0:00:20]} 45. Rf3 {[%clk 0:00:08]}  e4 {[%clk 0:00:19]} 46. Rf2 {[%clk 0:00:06]}  Nxb4 {[%clk 0:00:04]} 47. axb4 {[%clk 0:00:07]}  e3 {[%clk 0:00:05]} 48. Re2 {[%clk 0:00:07]}  Re7 {[%clk 0:00:05]} 49. Kg2 {[%clk 0:00:06]}  Re4 {[%clk 0:00:06]} 50. c5 {[%clk 0:00:03]}  Rxb4 {[%clk 0:00:05]} 51. cxd6 {[%clk 0:00:03]}  cxd6 {[%clk 0:00:06]} 52. Rxe3 {[%clk 0:00:03]}  Rb5 {[%clk 0:00:05]} 53. Ra3 {[%clk 0:00:02]}  Ra5 {[%clk 0:00:06]} 54. Kg3 {[%clk 0:00:02]}  Kg7 {[%clk 0:00:06]} 55. Kf4 {[%clk 0:00:02]}  Kg6 {[%clk 0:00:06]} 56. Ke4 {[%clk 0:00:03]}  Kh5 {[%clk 0:00:07]} 57. Kf5 {[%clk 0:00:01]}  Kxh4 {[%clk 0:00:07]} 58. Ke6 {[%clk 0:00:02]}  Ra6 {[%clk 0:00:07]} 59. Kd7 {[%clk 0:00:02]}  Kg5 {[%clk 0:00:04]} 60. Kc7 {[%clk 0:00:03]}  Kf5 {[%clk 0:00:04]} 61. h4 {[%clk 0:00:02]}  Ra8 {[%clk 0:00:03]} 62. Kxd6 {[%clk 0:00:02]}  Kg4 {[%clk 0:00:02]} 63. Kc6 {[%clk 0:00:02]}  Kxh4 {[%clk 0:00:02]} 64. d6 {[%clk 0:00:02]}  Kg5 {[%clk 0:00:03]} 65. Kb7 {[%clk 0:00:03]}  Ra5 {[%clk 0:00:02]} 66. d7 {[%clk 0:00:03]}  Rd5 {[%clk 0:00:03]} 67. Kc6 {[%clk 0:00:03]}  Rd1 {[%clk 0:00:03]} 68. Rxa4 {[%clk 0:00:03]}  Kf6 {[%clk 0:00:04]} 69. Re4 {[%clk 0:00:03]}  Kf7 {[%clk 0:00:05]} 70. Kc7 {[%clk 0:00:03]}  Rc1+ {[%clk 0:00:06]} 71. Kd8 {[%clk 0:00:04]}  Rd1 {[%clk 0:00:06]} 72. Re5 {[%clk 0:00:04]}  Rd2 {[%clk 0:00:07]} 73. Kc7 {[%clk 0:00:03]}  Rc2+ {[%clk 0:00:07]} 74. Kd6 {[%clk 0:00:03]}  Rd2+ {[%clk 0:00:08]} 75. Kc7 {[%clk 0:00:04]}  Rc2+ {[%clk 0:00:08]} 76. Kd8 {[%clk 0:00:04]}  Rd2 {[%clk 0:00:09]} 77. Re1 {[%clk 0:00:04]}  Rd3 {[%clk 0:00:09]} 78. Rf1+ {[%clk 0:00:05]}  Ke6 {[%clk 0:00:09]} 79. Ke8 {[%clk 0:00:05]}  Rh3 {[%clk 0:00:05]} 80. d8=Q {[%clk 0:00:05]}  Rh8+ {[%clk 0:00:05]} 81. Rf8 {[%clk 0:00:05]}  Rh7 {[%clk 0:00:05]} 82. Qf6+ {[%clk 0:00:05]}  Kd5 {[%clk 0:00:06]} 83. Qf5+ {[%clk 0:00:06]}  Kd6 {[%clk 0:00:04]} 84. Qxh7 {[%clk 0:00:06]} 1-0


[Site "https://www.chess.com"]

[Event "Titled Tuesday Blitz July 4 Early 2023"]
[White "benny_aizenberg"]
[Black "Indjic, Aleksandar"]
[BlackFideId "911925"]
[WhiteElo "2678"]
[BlackElo "2969"]
[Result "1/2-1/2"]
[Round "10"]
[TimeControl "180+2"]
[Date "2023.07.04"]
[WhiteClock "0:00:07"]
[BlackClock "0:00:23"]
[Board "12"]

1. e4 {[%clk 0:03:00]}  c5 {[%clk 0:02:57]} 2. Nf3 {[%clk 0:03:01]}  d6 {[%clk 0:02:58]} 3. Bb5+ {[%clk 0:03:00]}  Nd7 {[%clk 0:02:58]} 4. O-O {[%clk 0:02:59]}  a6 {[%clk 0:02:57]} 5. Bd3 {[%clk 0:02:59]}  e6 {[%clk 0:02:58]} 6. c3 {[%clk 0:02:58]}  b5 {[%clk 0:02:55]} 7. Bc2 {[%clk 0:02:58]}  c4 {[%clk 0:02:54]} 8. a4 {[%clk 0:02:58]}  Bb7 {[%clk 0:02:54]} 9. axb5 {[%clk 0:02:57]}  axb5 {[%clk 0:02:55]} 10. Rxa8 {[%clk 0:02:57]}  Bxa8 {[%clk 0:02:55]} 11. Na3 {[%clk 0:02:58]}  Ngf6 {[%clk 0:02:54]} 12. Re1 {[%clk 0:02:57]}  Qb6 {[%clk 0:02:51]} 13. d4 {[%clk 0:02:57]}  cxd3 {[%clk 0:02:51]} 14. Bxd3 {[%clk 0:02:56]}  b4 {[%clk 0:02:48]} 15. Qa4 {[%clk 0:02:44]}  Bc6 {[%clk 0:02:44]} 16. Qxb4 {[%clk 0:02:44]}  Qxb4 {[%clk 0:02:41]} 17. cxb4 {[%clk 0:02:40]}  d5 {[%clk 0:02:42]} 18. b5 {[%clk 0:02:40]}  Bb7 {[%clk 0:02:41]} 19. e5 {[%clk 0:02:39]}  Ne4 {[%clk 0:02:39]} 20. Be3 {[%clk 0:02:24]}  Ndc5 {[%clk 0:02:32]} 21. Bb1 {[%clk 0:02:23]}  Be7 {[%clk 0:02:26]} 22. Rc1 {[%clk 0:02:23]}  Kd7 {[%clk 0:02:23]} 23. b6 {[%clk 0:02:13]}  Rc8 {[%clk 0:02:20]} 24. Nb5 {[%clk 0:02:13]}  Nb3 {[%clk 0:02:14]} 25. Rd1 {[%clk 0:02:07]}  Nec5 {[%clk 0:02:08]} 26. Bc2 {[%clk 0:01:55]}  Ba6 {[%clk 0:01:54]} 27. Nfd4 {[%clk 0:01:45]}  Bxb5 {[%clk 0:01:24]} 28. Nxb5 {[%clk 0:01:45]}  Rb8 {[%clk 0:01:25]} 29. Nd4 {[%clk 0:01:07]}  Nxd4 {[%clk 0:01:22]} 30. Bxd4 {[%clk 0:01:07]}  Rxb6 {[%clk 0:01:19]} 31. Ra1 {[%clk 0:01:06]}  Rb7 {[%clk 0:01:17]} 32. f4 {[%clk 0:01:02]}  g6 {[%clk 0:01:16]} 33. Kf2 {[%clk 0:01:01]}  h5 {[%clk 0:01:16]} 34. Ke3 {[%clk 0:01:01]}  Nb3 {[%clk 0:01:14]} 35. Ra7 {[%clk 0:00:54]}  Rxa7 {[%clk 0:01:06]} 36. Bxa7 {[%clk 0:00:55]}  Bc5+ {[%clk 0:01:04]} 37. Bxc5 {[%clk 0:00:55]}  Nxc5 {[%clk 0:01:04]} 38. Kd4 {[%clk 0:00:55]}  Kc6 {[%clk 0:00:49]} 39. b4 {[%clk 0:00:52]}  Nd7 {[%clk 0:00:45]} 40. Ba4+ {[%clk 0:00:51]}  Kc7 {[%clk 0:00:46]} 41. g3 {[%clk 0:00:45]}  Kd8 {[%clk 0:00:43]} 42. Bc6 {[%clk 0:00:41]}  Kc7 {[%clk 0:00:44]} 43. b5 {[%clk 0:00:40]}  Kd8 {[%clk 0:00:44]} 44. h3 {[%clk 0:00:38]}  Kc7 {[%clk 0:00:44]} 45. g4 {[%clk 0:00:38]}  hxg4 {[%clk 0:00:43]} 46. hxg4 {[%clk 0:00:38]}  Kd8 {[%clk 0:00:42]} 47. f5 {[%clk 0:00:38]}  gxf5 {[%clk 0:00:42]} 48. gxf5 {[%clk 0:00:38]}  exf5 {[%clk 0:00:24]} 49. Bxd5 {[%clk 0:00:36]}  Ke7 {[%clk 0:00:20]} 50. Bc6 {[%clk 0:00:33]}  Nb6 {[%clk 0:00:21]} 51. Kc5 {[%clk 0:00:31]}  Na4+ {[%clk 0:00:21]} 52. Kd4 {[%clk 0:00:21]}  f6 {[%clk 0:00:20]} 53. exf6+ {[%clk 0:00:14]}  Kxf6 {[%clk 0:00:21]} 54. Kc4 {[%clk 0:00:15]}  Ke5 {[%clk 0:00:19]} 55. Kb4 {[%clk 0:00:14]}  Nb6 {[%clk 0:00:20]} 56. Bg2 {[%clk 0:00:12]}  Kd6 {[%clk 0:00:19]} 57. Ka5 {[%clk 0:00:11]}  Kc7 {[%clk 0:00:19]} 58. Bh3 {[%clk 0:00:11]}  f4 {[%clk 0:00:20]} 59. Bg4 {[%clk 0:00:11]}  Nd5 {[%clk 0:00:18]} 60. Bf3 {[%clk 0:00:11]}  Nb6 {[%clk 0:00:19]} 61. Kb4 {[%clk 0:00:10]}  Kd6 {[%clk 0:00:19]} 62. Ka5 {[%clk 0:00:10]}  Kc5 {[%clk 0:00:20]} 63. Bg2 {[%clk 0:00:08]}  Nc4+ {[%clk 0:00:20]} 64. Ka6 {[%clk 0:00:07]}  Nb6 {[%clk 0:00:20]} 65. Bf3 {[%clk 0:00:07]}  Nd7 {[%clk 0:00:20]} 66. Bg2 {[%clk 0:00:06]}  Nb8+ {[%clk 0:00:20]} 67. Ka5 {[%clk 0:00:06]}  Nd7 {[%clk 0:00:21]} 68. Bf3 {[%clk 0:00:06]}  Ne5 {[%clk 0:00:21]} 69. Bh1 {[%clk 0:00:06]}  Kd4 {[%clk 0:00:20]} 70. b6 {[%clk 0:00:06]}  Nc4+ {[%clk 0:00:20]} 71. Kb5 {[%clk 0:00:06]}  Nxb6 {[%clk 0:00:21]} 72. Kxb6 {[%clk 0:00:06]}  Ke3 {[%clk 0:00:21]} 73. Bg2 {[%clk 0:00:07]}  Kf2 {[%clk 0:00:22]} 74. Bh1 {[%clk 0:00:07]}  Kg3 {[%clk 0:00:23]} 75. Be4 {[%clk 0:00:07]}  f3 {[%clk 0:00:23]} 76. Bxf3 {[%clk 0:00:07]} 1/2-1/2


[Site "https://www.chess.com"]

[Event "Titled Tuesday Blitz July 4 Early 2023"]
[White "Dubov, Daniil"]
[Black "Taspinar, Yanki"]
[WhiteFideId "24126055"]
[BlackFideId "34561188"]
[WhiteElo "3072"]
[BlackElo "2721"]
[Result "1-0"]
[Round "10"]
[TimeControl "180+2"]
[Date "2023.07.04"]
[WhiteClock "0:00:27"]
[BlackClock "0:00:01"]
[Board "13"]

1. e4 {[%clk 0:03:00]}  e6 {[%clk 0:02:58]} 2. d4 {[%clk 0:03:00]}  d5 {[%clk 0:02:59]} 3. e5 {[%clk 0:02:59]}  c5 {[%clk 0:02:59]} 4. c3 {[%clk 0:03:00]}  Nc6 {[%clk 0:03:00]} 5. Nf3 {[%clk 0:03:00]}  Bd7 {[%clk 0:03:00]} 6. Be2 {[%clk 0:02:57]}  Rc8 {[%clk 0:02:59]} 7. O-O {[%clk 0:02:52]}  Qb6 {[%clk 0:02:59]} 8. Na3 {[%clk 0:02:51]}  cxd4 {[%clk 0:02:57]} 9. cxd4 {[%clk 0:02:52]}  Nh6 {[%clk 0:02:57]} 10. Bxh6 {[%clk 0:02:48]}  gxh6 {[%clk 0:02:58]} 11. Nc2 {[%clk 0:02:47]}  Bg7 {[%clk 0:02:58]} 12. Ne3 {[%clk 0:02:46]}  f6 {[%clk 0:02:42]} 13. Ng4 {[%clk 0:02:42]}  fxe5 {[%clk 0:02:31]} 14. Ngxe5 {[%clk 0:02:30]}  Nxd4 {[%clk 0:02:03]} 15. Nxd4 {[%clk 0:02:24]}  Bxe5 {[%clk 0:02:03]} 16. Bh5+ {[%clk 0:02:14]}  Kd8 {[%clk 0:02:02]} 17. Nf3 {[%clk 0:02:12]}  Bd6 {[%clk 0:01:50]} 18. Rc1 {[%clk 0:01:55]}  Rf8 {[%clk 0:01:49]} 19. Rxc8+ {[%clk 0:01:45]}  Kxc8 {[%clk 0:01:41]} 20. Qc1+ {[%clk 0:01:45]}  Kb8 {[%clk 0:01:33]} 21. Qxh6 {[%clk 0:01:46]}  Qxb2 {[%clk 0:01:31]} 22. Qxh7 {[%clk 0:01:45]}  Bc6 {[%clk 0:01:22]} 23. Bg4 {[%clk 0:01:30]}  e5 {[%clk 0:01:10]} 24. Qh6 {[%clk 0:01:26]}  Qa3 {[%clk 0:01:01]} 25. h4 {[%clk 0:01:20]}  d4 {[%clk 0:00:46]} 26. h5 {[%clk 0:01:10]}  Qb4 {[%clk 0:00:24]} 27. Qg7 {[%clk 0:01:04]}  Bb5 {[%clk 0:00:13]} 28. Nxe5 {[%clk 0:00:53]}  Ka8 {[%clk 0:00:08]} 29. a3 {[%clk 0:00:35]}  Qd2 {[%clk 0:00:04]} 30. Bf3 {[%clk 0:00:35]}  Ba6 {[%clk 0:00:03]} 31. Rb1 {[%clk 0:00:34]}  Rb8 {[%clk 0:00:02]} 32. Nd7 {[%clk 0:00:31]}  Qc2 {[%clk 0:00:02]} 33. Qg6 {[%clk 0:00:26]}  Bd3 {[%clk 0:00:01]} 34. Bxb7+ {[%clk 0:00:25]}  Rxb7 {[%clk 0:00:01]} 35. Qe8+ {[%clk 0:00:26]}  Bb8 {[%clk 0:00:01]} 36. Qxb8+ {[%clk 0:00:27]}  Rxb8 {[%clk 0:00:01]} 37. Rxb8# {[%clk 0:00:27]} 1-0


[Site "https://www.chess.com"]